Cogmind - Beta 15 @@@ ROGUE MODE // 2025.07.27 @ 15:12:46 Player: Fazzonamite Result: Destroyed by Y-64 Sentinel with KE Penetrator Performance ------------- Evolutions (5) 2500 Regions Visited (11) 2200 Robots Destroyed (96) 480 Value Destroyed (3209) 3209 Prototype IDs (11) 220 Alien Tech Used (0) 0 Bonus (643) 643 TOTAL SCORE: 9252 Bonus ------- High Alert Combat Kills 81 Follower Combat Kills 562 Cogmind --------- Core Integrity 0/1000 Matter 300/300 Energy 98/100 System Corruption 10% Temperature Cool (9) Movement Core (50) Location -5/Upper Caves Parts ------- > --- POWER (1) -------- (None) > --- PROPULSION (5) --- Armored Medium Treads > --- UTILITY (8) ------ Scrap Engine > --- WEAPON (3) ------- (None) > --- INVENTORY (5) ---- Improved Terrain Scanner Makeshift Light Armor Plating Datajack Plasma Cutter Peak State ------------ > --- POWER ------------ Micro Fission Core > --- PROPULSION ------- Scrap-Scrap Exoskeleton Antigrav Array > --- UTILITY ---------- Armored Scrap Engine Improved Heat Sink Improved Sensor Array Improved Signal Interpreter Makeshift Light Armor Plating Makeshift Light Armor Plating Improved System Shield > --- WEAPON ----------- Tesla Rifle Hpw. Charged Tesla Construct/G > --- INVENTORY -------- Armored Medium Treads Structural Scanner Improved Terrain Scanner Datajack Plasma Cutter [Rating: 89] Favorites ----------- Power Ion Engine Engine Ion Engine Power Core Constructs Propulsion Compact Wheel Treads Light Treads Leg Constructs Wheel Compact Wheel Hover Unit Gravmag System Utility Medium Storage Unit Device Improved Heat Sink Storage Medium Storage Unit Processor Improved Signal Interpreter Hackware Improved System Shield Protection Hardened Light Armor Plating Weapon Beam Rifle Energy Gun Beam Rifle Energy Cannon Ion Cannon Ballistic Gun Heavy Assault Rifle Ballistic Cannon Battle Cannon Launcher Grenade Launcher Special Weapon Plasma Cutter Slashing Weapon Katana Build | -11 -10 -10 -8 -8 -8 -6 -5 -5 -5 -5 -5 ------- Run | Yrd Mat Sub Mat Sto Rec Fac Fac Was Fac Upp Upp Slots Evolved 10 | . . . 4 . . 4 2 . . . . Power . | . . . . . . . . . . . . Propulsion 3 | . . . 1 . . 1 1 . . . . Utility 6 | . . . 2 . . 3 1 . . . . Weapon 1 | . . . 1 . . . . . . . . Parts Attached 122 | 7 7 9 37 24 12 9 3 1 9 4 . Power 11 | 1 1 . 3 3 2 . . . 1 . . Engine 8 | 1 1 . 2 3 1 . . . . . . Core 3 | . . . 1 . 1 . . . 1 . . Reactor . | . . . . . . . . . . . . Propulsion 29 | 2 3 3 7 6 3 2 . 1 1 1 . Treads 10 | 1 2 2 1 3 . . . . . 1 . Leg 1 | . . . . . 1 . . . . . . Wheel 14 | 1 1 1 6 3 2 . . . . . . Hover 4 | . . . . . . 2 . 1 1 . . Flight . | . . . . . . . . . . . . Utility 46 | 2 2 2 14 6 3 6 2 . 6 3 . Device 18 | 2 . . 5 1 2 3 1 . 3 1 . Storage 2 | . 2 . . . . . . . . . . Processor 6 | . . . 2 2 . 1 . . 1 . . Hackware 4 | . . . . 2 . 1 . . 1 . . Protection 16 | . . 2 7 1 1 1 1 . 1 2 . Artifact . | . . . . . . . . . . . . Weapon 36 | 2 1 4 13 9 4 1 1 . 1 . . Energy Gun 19 | 1 1 2 5 6 2 . 1 . 1 . . Energy Cannon 1 | . . . . 1 . . . . . . . Ballistic Gun 11 | 1 . . 6 2 2 . . . . . . Ballistic Cannon 1 | . . 1 . . . . . . . . . Launcher 1 | . . . 1 . . . . . . . . Special Weapon 2 | . . 1 . . . 1 . . . . . Impact Weapon . | . . . . . . . . . . . . Slashing Weapon 1 | . . . 1 . . . . . . . . Piercing Weapon . | . . . . . . . . . . . . Special Melee Weapon . | . . . . . . . . . . . . Unidentified Prototypes 3 | . . . 1 1 1 . . . . . . Parts Lost 54 | . . 4 11 16 . 5 2 2 2 12 . Power 6 | . . . 1 3 . 1 . . 1 . . Propulsion 19 | . . 2 3 5 . 2 1 1 . 5 . Utility 17 | . . . 2 4 . 2 1 1 1 6 . Weapon 12 | . . 2 5 4 . . . . . 1 . Highest Loss Streak 13 | . . 2 5 13 . 3 1 1 2 11 . To Critical Strikes . | . . . . . . . . . . . . Average Backups 6 | 3 8 9 9 6 5 2 4 4 3 4 4 Power . | . . 1 1 . . . . . . . . Propulsion . | 1 2 1 . . 1 . . 1 . . . Utility 2 | . 2 3 4 2 1 1 2 1 1 1 2 Weapon 1 | . 3 3 2 2 . . . . . . . Tool/Special . | . . . . . . . . . . . . Unused Backups 21 | 1 1 . 7 3 6 . . . 1 . 2 Power 3 | . . . 2 . 1 . . . . . . Propulsion 4 | 1 . . . . 3 . . . . . . Utility 8 | . 1 . 2 1 2 . . . 1 . 1 Weapon 3 | . . . 1 2 . . . . . . . Tool/Special 3 | . . . 2 . . . . . . . 1 Average Slot Usage (%) 84 | . 100 99 96 86 86 70 66 59 58 46 11 Engine 5 | . 14 14 4 4 1 1 5 5 3 . . Core 2 | . . . 3 . 7 4 . . 1 2 . Treads 4 | . 14 10 4 9 . . 1 . . 1 5 Leg 1 | . . . . . 6 . 3 5 5 3 . Wheel 13 | . 14 17 22 11 18 15 . . . . . Hover 1 | . . . . . . 1 7 3 5 2 . Device 10 | . 14 5 12 4 2 17 15 17 20 14 5 Storage 7 | . 13 14 9 9 6 . . . . . . Processor 4 | . . . 2 5 8 5 5 3 3 4 . Hackware 1 | . . . . 6 . 1 5 5 4 3 . Protection 6 | . . 8 10 8 8 4 5 6 2 4 . Energy Gun 12 | . 14 19 8 15 16 6 7 8 6 5 . Ballistic Gun 7 | . 14 1 14 6 9 7 . . . . . Ballistic Cannon 1 | . . 6 3 . . 2 . . . . . Peak Build Rating 89 | 9 9 12 28 28 35 65 74 79 88 89 25 Average Rating 30 | 4 7 10 23 19 24 44 65 64 78 58 25 On Entrance 32 | . 9 8 12 15 17 35 62 69 52 87 25 Naked Turns . | . . . . . . . . . . . . Heaviest Build 42 | 9 19 24 42 33 42 35 29 29 20 24 1 Greatest Support 40 | 16 20 32 36 40 39 36 36 30 30 26 3 Greatest Overweight (x) 3 | . 1 1 1 3 2 1 . 2 . . . Average Overweight (x) . | . . . . 1 . . . . . . . Largest Inventory Capacity 10 | 5 10 10 10 10 10 5 5 5 5 5 5 Average Capacity 8 | 5 8 10 10 10 8 5 5 5 5 5 5 Most Carried 10 | 5 10 10 10 10 10 5 5 5 5 5 4 Average Carried 7 | 4 8 9 9 6 7 4 4 4 3 4 4 Final Capacity 10 | 5 10 10 10 10 5 5 5 5 5 5 5 Final Carried 10 | 5 10 9 7 6 5 5 4 5 5 4 4 Scrap Engine Consumption 66 | . . . . . 23 15 12 3 4 9 . Constructs Created 5 | . . . . . 1 2 . . . 2 . Constructs Modified 21 | . . . . . 1 10 7 2 1 . . Class Distribution -------------------- 36% | Scavenger-Tank 31% | Mutant 19% | Scavenger-Mutant 7% | Scavenger-Skirmisher 3% | Skirmisher Dominant Class ---------------- Mutant | -10/Materials Mutant | -10/Subcaves Scavenger-Tank | -8/Materials Scavenger-Tank | -8/Storage Scavenger-Tank | -8/Recycling Scavenger-Skirmisher | -6/Factory Mutant | -5/Factory Mutant | -5/Waste Mutant | -5/Factory Mutant | -5/Upper Caves Mutant | -5/Upper Caves Resources | -11 -10 -10 -8 -8 -8 -6 -5 -5 -5 -5 -5 ----------- Run | Yrd Mat Sub Mat Sto Rec Fac Fac Was Fac Upp Upp Matter Collected 2647 | 216 244 190 980 377 186 208 64 . 102 80 . Remotely . | . . . . . . . . . . . . Salvage Created 3692 | 53 366 142 1245 918 106 293 140 . 160 269 . Parts 180 | 8 15 5 69 44 3 11 4 . 13 8 . Haulers Intercepted 3 | . 2 . . 1 . . . . . . . Recyclers Shooed 5 | 1 1 . 1 1 . 1 . . . . . Parts Field Recycled . | . . . . . . . . . . . . Retrieved Matter . | . . . . . . . . . . . . Parts Self-Destructed 16 | . . 13 . . . . . . . 3 . Prevented 7 | . . . . . . . . . . 7 . Kills | -11 -10 -10 -8 -8 -8 -6 -5 -5 -5 -5 -5 ------- Run | Yrd Mat Sub Mat Sto Rec Fac Fac Was Fac Upp Upp Combat Hostiles Destroyed 75 | . 6 3 36 13 1 7 2 . 2 5 . Guns 65 | . 6 3 31 11 1 6 . . 2 5 . Cannons 4 | . . . 2 . . 1 1 . . . . AOE 4 | . . . 3 1 . . . . . . . Classes Destroyed 16 | 1 3 2 5 2 . 1 1 . . 1 . Worker 4 | . . . 2 1 . 1 . . . . . Builder 4 | . . . . 2 . . . . 2 . . Tunneler 2 | 2 . . . . . . . . . . . Hauler 3 | . 2 . . 1 . . . . . . . Recycler 1 | . . . 1 . . . . . . . . Mechanic 1 | . . . . 1 . . . . . . . Operator 2 | . . . 2 . . . . . . . . Watcher 3 | . 1 . . 2 . . . . . . . Swarmer 21 | . . . 16 . . 3 . . . 2 . Grunt 34 | . 6 . 14 9 1 2 . . . 2 . Brawler 1 | . . . . . . . . . . 1 . Duelist 1 | . . . 1 . . . . . . . . Sentry 10 | . . 1 5 4 . . . . . . . Hunter 2 | . . . . . . . 2 . . . . Programmer 4 | . . . . . . 2 . . 2 . . Subdweller 3 | . . 2 . . 1 . . . . . . Best Kill Streak 6 | 1 4 1 5 6 1 3 2 . 1 3 . Combat Bots Only 4 | . 4 1 4 4 1 3 2 . 1 3 . Max Kills in Single Turn 2 | 1 1 1 2 2 1 1 1 . 1 1 . Gunslinging . | . . . . . . . . . . . . Exploded 1 | . . . 1 1 . . . . . . . Melee . | . . . . . . . . . . . . Uniques/NPCs Destroyed . | . . . . . . . . . . . . Combat | -11 -10 -10 -8 -8 -8 -6 -5 -5 -5 -5 -5 -------- Run | Yrd Mat Sub Mat Sto Rec Fac Fac Was Fac Upp Upp Hostile Shots Fired 811 | . 29 45 213 124 9 60 67 5 37 218 4 Missed 213 | . 12 12 45 30 5 14 22 . 7 66 . Hits 598 | . 17 33 168 94 4 46 45 5 30 152 4 Melee 7 | . . . . . . . . 5 . 2 . Projectile 591 | . 17 33 168 94 4 46 45 . 30 150 4 Critical Strikes 24 | . . 2 4 8 . . 2 4 3 1 . Actively Blocked 1 | . . 1 . . . . . . . . . Part Disruptions 1 | . . . 1 . . . . . . . . Damage Taken 9884 | . 211 706 2379 1639 92 754 765 224 595 2417 102 Core 1727 | . 64 118 336 135 23 33 98 49 122 647 102 Absorbed by Shields . | . . . . . . . . . . . . Redirected to Shielding 73 | . . 12 14 . . . . . 47 . . Ignored by Resistances 49 | . . 27 22 . . . . . . . . Regen/Repaired (Parts) 654 | . . . . . . 152 74 274 8 146 . Core Remaining (%) 58 | 100 . 27 . . 10 96 . . . . . Volleys Fired 289 | 6 34 21 100 41 13 35 11 . 14 14 . Largest 3 | 2 2 2 3 3 3 3 2 . 2 2 . Hottest 150 | 70 70 115 135 150 144 144 91 . 100 100 . Shots Fired 686 | 12 66 36 272 111 26 94 21 . 20 28 . Gun 619 | 12 66 30 239 110 26 77 11 . 20 28 . Cannon 58 | . . . 30 1 . 17 10 . . . . Launcher 3 | . . . 3 . . . . . . . . Special 6 | . . 6 . . . . . . . . . Kinetic 343 | 6 34 7 205 27 13 51 . . . . . Thermal 250 | 6 32 29 64 48 13 34 11 . 13 . . Explosive 3 | . . . 3 . . . . . . . . Electromagnetic 90 | . . . . 36 . 9 10 . 7 28 . Robot Hit Streak 20 | 5 12 20 19 19 6 12 17 . 15 18 . Robot Miss Streak 7 | 1 3 1 3 2 2 7 2 . 1 3 . Penetration Max . | . . . . . . . . . . . . Secondary Targets 6 | . 1 . 1 1 . 1 . . . 2 . Max Gunslinging Chain 1 | . 1 . 1 1 . 1 . . . 1 . Shots Hit Robots 476 | 8 47 27 178 88 17 58 17 . 18 18 . Core Hits 214 | 2 19 6 90 43 4 23 11 . 8 8 . Critical Kills 1 | . . . . . . 1 . . . . . Critical Parts Destroyed 2 | . . . 1 1 . . . . . . . Critical Strikes 14 | . . . 6 2 . 2 3 . . 1 . Burn 9 | . . . 4 1 . 1 3 . . . . Destroy 3 | . . . 1 1 . 1 . . . . . Blast 1 | . . . 1 . . . . . . . . Corrupt 1 | . . . . . . . . . . 1 . Melee Attacks 8 | . . . 2 6 . . . . . . . Impact . | . . . . . . . . . . . . Slashing 8 | . . . 2 6 . . . . . . . Piercing . | . . . . . . . . . . . . Sneak Attacks 2 | . . . . 2 . . . . . . . Combat Hostiles . | . . . . . . . . . . . . Follow-up Attacks . | . . . . . . . . . . . . Damage Inflicted 8680 | 101 597 348 3058 2108 259 817 318 . 340 734 . Guns 6771 | 101 597 348 2275 1542 259 685 101 . 340 523 . Cannons 582 | . . . 233 . . 132 217 . . . . Explosions 1185 | . . . 550 424 . . . . . 211 . Melee 142 | . . . . 142 . . . . . . . Ramming . | . . . . . . . . . . . . Kinetic 3184 | 64 292 91 1766 355 125 491 . . . . . Thermal 3044 | 37 305 257 742 697 134 300 101 . 260 211 . Explosive 592 | . . . 395 197 . . . . . . . Electromagnetic 1718 | . . . 155 717 . 26 217 . 80 523 . Impact . | . . . . . . . . . . . . Slashing 142 | . . . . 142 . . . . . . . Piercing . | . . . . . . . . . . . . Highest Corruption 10 | . . . . . . 2 . . 6 10 10 Average Corruption 6 | . . . . . . 1 . . 4 8 10 Corruption Purged . | . . . . . . . . . . . . Corruption Blocked . | . . . . . . . . . . . . Effects 17 | . . . . . . . . . 3 14 . Message Errors 2 | . . . . . . . . . . 2 . Matter Fused 2 | . . . . . . . . . 1 1 . Heat Flow Errors 3 | . . . . . . . . . 1 2 . Energy Discharges 2 | . . . . . . . . . 1 1 . Data Loss (minor) 2 | . . . . . . . . . . 2 . Misfires 1 | . . . . . . . . . . 1 . Alerts 2 | . . . . . . . . . . 2 . Misdirections 2 | . . . . . . . . . . 2 . Weapon Failures 1 | . . . . . . . . . . 1 . Overload Shots . | . . . . . . . . . . . . Overflow Damage 58 | . . . 8 50 . . . . . . . Projectiles 2 | . . . 2 . . . . . . . . Explosions 14 | . . . 6 8 . . . . . . . Melee 42 | . . . . 42 . . . . . . . Knockbacks 5 | . . . 5 . . . . . . . . Impact . | . . . . . . . . . . . . Kinetic 3 | . . . 3 . . . . . . . . Secondary 2 | . . . 2 . . . . . . . . Self-Inflicted Damage 324 | . . . 101 158 . . . . . 65 . Shots 8 | . . . 4 3 . . . . . 1 . Rammed . | . . . . . . . . . . . . Targets Rammed . | . . . . . . . . . . . . Kicked . | . . . . . . . . . . . . Crushed . | . . . . . . . . . . . . Highest Temperature 328 | 38 147 . 328 316 75 128 6 . 161 127 . Average Temperature 79 | 20 63 . 88 111 33 33 4 . 101 40 . Received Heat Transfer 2445 | . 123 72 1035 855 6 180 54 . . 102 18 Effects 3 | . . . . 3 . . . . . . . Energy Bleed 1 | . . . . 1 . . . . . . . Interference 2 | . . . . 2 . . . . . . . Siege Activations . | . . . . . . . . . . . . Martial Activations . | . . . . . . . . . . . . Shielding Activations . | . . . . . . . . . . . . Robots Disrupted . | . . . . . . . . . . . . Combat Hostiles . | . . . . . . . . . . . . Robots Corrupted 2 | . . . . 1 . . 1 . . . . Combat Hostiles 2 | . . . . 1 . . 1 . . . . Parts Fried 7 | . . . . 3 . . 2 . . 2 . Impact Corruptions . | . . . . . . . . . . . . Robots Melted . | . . . . . . . . . . . . Combat Hostiles . | . . . . . . . . . . . . Parts Melted 20 | . 1 2 2 2 1 4 3 . 5 . . Heat Transferred 7340 | 111 782 608 2183 1508 333 777 481 . 407 150 . Parts Sabotaged . | . . . . . . . . . . . . Parts Stolen . | . . . . . . . . . . . . Parts Stripped . | . . . . . . . . . . . . Power Chain Reactions 3 | . . . . 2 . . . . . 1 . Alert | -11 -10 -10 -8 -8 -8 -6 -5 -5 -5 -5 -5 ------- Run | Yrd Mat Sub Mat Sto Rec Fac Fac Was Fac Upp Upp Maximum Alert Level 3 | . . . 3 2 1 . . . . . . Low Security (%) 74 | 100 100 . 49 7 98 100 100 100 100 . . Level 1 16 | . . . 30 65 1 . . . . . . Level 2 7 | . . . 17 26 . . . . . . . Level 3 . | . . . 2 . . . . . . . . Level 4 . | . . . . . . . . . . . . Level 5 . | . . . . . . . . . . . . High Security . | . . . . . . . . . . . . Max Security . | . . . . . . . . . . . . Peak Influence 778 | 5 92 . 778 632 208 154 40 . 150 . . Initial 328 | . 3 . 1 328 208 50 6 . . . . Average 125 | . 26 . 237 354 17 64 5 . 85 . . Influence Increases 3626 | 10 190 35 1265 1056 36 389 50 . 275 320 . Destroy 0b10 Robot/C 1700 | . 120 20 720 460 20 180 40 . 40 100 . Destroy 0b10 Robot/NC 105 | 10 15 . 25 35 . 10 . . 10 . . Destroy Leader 382 | . 36 . 130 136 . 50 10 . 10 10 . Allied During Kill 132 | . . . . 122 2 8 . . . . . Successful Hack 31 | . 4 . 6 8 13 . . . . . . Select Force Hacks 50 | . . . . . . . . . 50 . . Disable Machine 120 | . . . 60 30 . 15 . . 15 . . Anti-Garrison Action 550 | . . . 200 200 . . . . 150 . . Destroy Structure 71 | . . . 34 35 1 1 . . . . . Advance Influence 50 | . . . . . . 50 . . . . . Lose Combat Pursuer 435 | . 15 15 90 30 . 75 . . . 210 . Influence Decreases 3545 | 5 195 32 490 1298 572 375 64 . 216 279 19 Entered New Map 832 | . 2 . 2 450 328 . 8 . . 23 19 Time Decay 1689 | 5 193 32 368 398 74 231 56 . 196 136 . Lost Part 450 | . . . 110 160 . 40 . . 20 120 . Lost Ally 190 | . . . 10 140 20 20 . . . . . Purge Threat 384 | . . . . 150 150 84 . . . . . Squads Dispatched 23 | . 2 . 5 3 . 6 2 . 5 . . Investigation 4 | . . . 1 1 . 1 . . 1 . . Extermination 4 | . . . . . . 2 1 . 1 . . Reinforcement 7 | . 2 . 2 1 . . 1 . 1 . . Assault 3 | . . . 1 . . . . . 2 . . Garrison 5 | . . . 1 1 . 3 . . . . . Intercept . | . . . . . . . . . . . . Searches Triggered . | . . . . . . . . . . . . Construction Impeded . | . . . . . . . . . . . . Haulers Reinforced . | . . . . . . . . . . . . Active Scanning Responses . | . . . . . . . . . . . . Cargo Convoy Interrupts . | . . . . . . . . . . . . Stealth | -11 -10 -10 -8 -8 -8 -6 -5 -5 -5 -5 -5 --------- Run | Yrd Mat Sub Mat Sto Rec Fac Fac Was Fac Upp Upp Distress Signals 7 | . 1 . 3 2 . 1 . . . . . Communications Jammed . | . . . . . . . . . . . . Distress Signals . | . . . . . . . . . . . . Times Spotted 175 | . 14 11 50 29 6 18 6 6 5 29 1 Peak Tracking Total 12 | . 5 2 10 7 1 6 3 6 3 12 1 Tactical Retreats 17 | . 1 3 3 2 . 3 . . . 5 . Traps | -11 -10 -10 -8 -8 -8 -6 -5 -5 -5 -5 -5 ------- Run | Yrd Mat Sub Mat Sto Rec Fac Fac Was Fac Upp Upp Traps Triggered 3 | . . 1 . 1 . . 1 . . . . Indirectly . | . . . . . . . . . . . . Trap Hack Attempts . | . . . . . . . . . . . . Triggered . | . . . . . . . . . . . . Disarmed . | . . . . . . . . . . . . Reprogrammed 10 | . . . . 10 . . . . . . . Reused . | . . . . . . . . . . . . Traps Extracted . | . . . . . . . . . . . . Installed . | . . . . . . . . . . . . Triggered . | . . . . . . . . . . . . Machines | -11 -10 -10 -8 -8 -8 -6 -5 -5 -5 -5 -5 ---------- Run | Yrd Mat Sub Mat Sto Rec Fac Fac Was Fac Upp Upp Machines Disabled 9 | . . . 4 2 . 1 . . 2 . . Max in Single Turn 2 | . . . 2 1 . 1 . . 1 . . Garrison Access 3 | . . . 1 1 . . . . 1 . . Machines Repaired . | . . . . . . . . . . . . Machines Dismantled 3 | . . . . . . 1 . . 2 . . Machines Sabotaged . | . . . . . . . . . . . . Overloaded Fab Kills . | . . . . . . . . . . . . Hacking | -11 -10 -10 -8 -8 -8 -6 -5 -5 -5 -5 -5 --------- Run | Yrd Mat Sub Mat Sto Rec Fac Fac Was Fac Upp Upp Machines Accessed 41 | . 3 3 6 8 11 3 3 . 3 1 . Terminals 25 | . 3 . 5 7 6 3 1 . . . . Fabricators 3 | . . . . . . . 1 . 2 . . Repair Stations . | . . . . . . . . . . . . Recycling Units 4 | . . . . . 3 . 1 . . . . Scanalyzers . | . . . . . . . . . . . . Garrison Access 3 | . . . 1 1 . . . . 1 . . Total Hacks 100 | . 9 6 14 26 27 7 4 . 6 1 . Successful 54 | . 4 6 6 15 17 2 1 . 2 1 . Failed 46 | . 5 . 8 11 10 5 3 . 4 . . Catastrophic 7 | . 1 . 1 . 2 1 1 . 1 . . Database Lockouts . | . . . . . . . . . . . . Manual 47 | . 9 . 10 10 11 5 1 . 1 . . Terminals 63 | . 9 . 11 22 13 7 1 . . . . Fabricators 6 | . . . . . . . 2 . 4 . . Repair Stations . | . . . . . . . . . . . . Recycling Units 9 | . . . . . 8 . 1 . . . . Scanalyzers . | . . . . . . . . . . . . Garrison Access 9 | . . . 3 4 . . . . 2 . . Terminal Hacks 35 | . 2 6 3 11 10 2 . . . 1 . Record 8 | . . 4 . . 4 . . . . . . Part Schematic 1 | . . . . 1 . . . . . . . Robot Analysis 3 | . 2 . . 1 . . . . . . . Prototype ID Bank 2 | . . . . 1 1 . . . . . . Open Door 5 | . . 1 . 3 . . . . . 1 . Branch Access Points 2 | . . . 1 . 1 . . . . . . Alert Level 2 | . . . 1 . . 1 . . . . . Unreport Threat 3 | . . . . 1 1 1 . . . . . Reprogram Traps 2 | . . . . 2 . . . . . . . Security Status 1 | . . . . 1 . . . . . . . Recall Investigation 1 | . . . 1 . . . . . . . . Zone Layout 2 | . . . . 1 1 . . . . . . Release Object 3 | . . 1 . . 2 . . . . . . Fabricator Hacks 1 | . . . . . . . . . 1 . . Network Status 1 | . . . . . . . . . 1 . . Repair Station Hacks . | . . . . . . . . . . . . Recycling Unit Hacks 5 | . . . . . 4 . 1 . . . . Report Inventory 3 | . . . . . 3 . . . . . . Retrieve Components 2 | . . . . . 1 . 1 . . . . Scanalyzer . | . . . . . . . . . . . . Garrison Access Hacks . | . . . . . . . . . . . . Unauthorized Hacks 13 | . 2 . 3 4 3 . . . 1 . . Terminals 10 | . 2 . 2 3 3 . . . . . . Assimilate 1 | . . . 1 . . . . . . . . Botnet 7 | . 2 . 1 2 2 . . . . . . Operators 2 | . . . . 1 1 . . . . . . Fabricators 1 | . . . . . . . . . 1 . . Overload 1 | . . . . . . . . . 1 . . Repair Stations . | . . . . . . . . . . . . Recycling Units . | . . . . . . . . . . . . Scanalyzers . | . . . . . . . . . . . . Garrison Access 2 | . . . 1 1 . . . . . . . Jam 2 | . . . 1 1 . . . . . . . Data Cores Recovered 1 | . . . 1 . . . . . . . . Used 1 | . . . 1 . . . . . . . . Hacking Detections 29 | . 3 . 5 8 7 2 2 . 2 . . Full Trace Events 2 | . . . . . 1 1 . . . . . Feedback Events . | . . . . . . . . . . . . Feedback Blocked . | . . . . . . . . . . . . Robot Schematics Acquired . | . . . . . . . . . . . . Robots Built . | . . . . . . . . . . . . Authchips . | . . . . . . . . . . . . Time . | . . . . . . . . . . . . Total Robot Build Rating . | . . . . . . . . . . . . Part Schematics Acquired 1 | . . . . 1 . . . . . . . Parts Built . | . . . . . . . . . . . . Authchips . | . . . . . . . . . . . . Time . | . . . . . . . . . . . . Total Part Build Rating . | . . . . . . . . . . . . Parts Repaired . | . . . . . . . . . . . . Time . | . . . . . . . . . . . . Parts Recycled . | . . . . . . . . . . . . Recycled Matter . | . . . . . . . . . . . . Retrieved Matter . | . . . . . . . . . . . . Retrieved Components 5 | . . . . . 2 . 3 . . . . Parts Scanalyzed . | . . . . . . . . . . . . Part Schematics Acquired . | . . . . . . . . . . . . Parts Damaged . | . . . . . . . . . . . . Bothacking | -11 -10 -10 -8 -8 -8 -6 -5 -5 -5 -5 -5 ------------ Run | Yrd Mat Sub Mat Sto Rec Fac Fac Was Fac Upp Upp Used RIF Installer . | . . . . . . . . . . . . Robots Hacked . | . . . . . . . . . . . . Non-combat . | . . . . . . . . . . . . Combat . | . . . . . . . . . . . . Robot Hacks Applied . | . . . . . . . . . . . . Relay Couplers Released 3 | . . . . . . . . . 3 . . Machine Destruction 3 | . . . . . . . . . 3 . . Fabnet Peak Effective % . | . . . . . . . . . . . . Robots Rewired 1 | . . . . . . 1 . . . . . Allies Hacked . | . . . . . . . . . . . . Hacks Repelled . | . . . . . . . . . . . . Allies | -11 -10 -10 -8 -8 -8 -6 -5 -5 -5 -5 -5 -------- Run | Yrd Mat Sub Mat Sto Rec Fac Fac Was Fac Upp Upp Total Allies 12 | . . . 1 10 . 1 . . . . . Largest Group 10 | . . . 1 10 3 2 . . . . . Highest-Rated Group 173 | . . . 10 173 48 48 . . . . . Highest-Rated Ally 32 | . . . 10 29 16 32 . . . . . Total Orders 9 | . . . 2 5 2 . . . . . . STAY 3 | . . . 1 1 1 . . . . . . ROAM 1 | . . . . 1 . . . . . . . FOLLOW 5 | . . . 1 3 1 . . . . . . Ally Attacks 126 | . . . . 82 31 13 . . . . . Total Damage 1882 | . . . . 1051 430 401 . . . . . Kills 20 | . . . . 10 7 3 . . . . . Allies Corrupted . | . . . . . . . . . . . . Allies Melted . | . . . . . . . . . . . . Intel | -11 -10 -10 -8 -8 -8 -6 -5 -5 -5 -5 -5 ------- Run | Yrd Mat Sub Mat Sto Rec Fac Fac Was Fac Upp Upp Active Infowar (turns) 4697 | 5 756 331 577 312 939 595 383 253 329 217 . Sensors 1289 | . . . . . . 431 358 . 329 171 . Terrain 860 | 5 30 248 577 . . . . . . . . Structural 1042 | . . . . . 1 449 193 253 . 146 . Seismic 841 | 2 756 83 . . . . . . . . . Machine Analysis 1251 | . . . . 312 939 . . . . . . Robot Analysis Total 3 | . 2 . . 1 . . . . . . . Derelict Logs Recovered 4 | . . 1 . . . . . . . 2 1 Drone Launches . | . . . . . . . . . . . . Drone Recoveries . | . . . . . . . . . . . . Exploration | -11 -10 -10 -8 -8 -8 -6 -5 -5 -5 -5 -5 ------------- Run | Yrd Mat Sub Mat Sto Rec Fac Fac Was Fac Upp Upp Turns Passed 7374 | 97 756 863 1353 945 1249 675 449 253 428 287 19 Spaces Moved 5007 | 59 440 672 688 483 1050 510 264 147 334 342 18 Core 306 | 7 . . . . . . . . . 281 18 Treads 270 | . 159 31 . 75 . 3 2 . . . . Legs 254 | . . . . . . . 108 131 15 . . Wheels 3585 | 52 281 641 688 408 1050 465 . . . . . Hover 592 | . . . . . . 42 154 16 319 61 . Flight . | . . . . . . . . . . . . Fastest Speed 50 | 50 100 100 85 80 90 86 86 167 90 50 50 Average Speed 105 | 94 125 110 95 120 103 95 125 171 93 57 50 Slowest Speed 240 | 100 160 160 105 240 110 167 167 210 167 90 50 Overloaded Moves . | . . . . . . . . . . . . Propulsion Burnouts . | . . . . . . . . . . . . Robots Hopped . | . . . . . . . . . . . . Potential Cave-ins . | . . . . . . . . . . . . Cave-ins Triggered . | . . . . . . . . . . . . Exploration Rate (%) 40 | 5 53 46 65 64 98 9 4 76 8 56 4 Regions Visited 11 Branch Regions 5 Pre-discovered Areas 2 | . . 2 . . . . . . . . . Known Exits Taken 4 | . . . 1 1 . 1 . . 1 . . Unknown Exits Taken 5 | 1 1 1 . . 1 . . . . 1 . Scrap Searched . | . . . . . . . . . . . . Spaces Dug 8 | . . . 3 4 1 . . . . . . Terrain Destroyed 63 | . . . 26 30 1 . . . . 6 . Melee 5 | . . . 2 3 . . . . . . . Projectile 9 | . . . 7 1 1 . . . . . . AOE 49 | . . . 17 26 . . . . . 6 . Terrain Rammed . | . . . . . . . . . . . . Walls Destroyed . | . . . . . . . . . . . . Machines Disabled . | . . . . . . . . . . . . Actions | -11 -10 -10 -8 -8 -8 -6 -5 -5 -5 -5 -5 --------- Run | Yrd Mat Sub Mat Sto Rec Fac Fac Was Fac Upp Upp Total 6512 | 88 582 734 1190 754 1196 615 365 148 406 406 28 Wait 818 | 5 88 13 302 146 79 34 79 . 24 38 10 Move 4997 | 58 439 671 687 482 1049 509 264 146 333 341 18 Hop . | . . . . . . . . . . . . Pick Up 111 | 11 7 5 19 27 18 11 3 1 8 1 . Fast Attach 21 | 2 . . 11 . 3 1 . . 3 1 . Attach 70 | 5 . 4 9 22 6 8 5 1 8 2 . Detach 5 | . . . . . . 1 2 . 2 . . Swap 69 | . 7 17 26 8 6 2 . . . 3 . Drop 95 | 1 7 3 34 14 20 7 1 . 2 6 . Fire 289 | 6 34 21 100 41 13 35 11 . 14 14 . Melee 8 | . . . 2 6 . . . . . . . Ram . | . . . . . . . . . . . . Kick . | . . . . . . . . . . . . Crush . | . . . . . . . . . . . . Escape Stasis 8 | . . . . 8 . . . . . . . Rewire 3 | . . . . . . 3 . . . . . Trap . | . . . . . . . . . . . . Miscellaneous 18 | . . . . . 2 4 . . 12 . . Route ------- -11/Scrapyard -10/Materials (discovered 4 exits: [*Mat] / [*Min x2] / *Sub) -10/Subcaves -8/Materials (discovered 3 exits: [*Fac x2] / *Sto) -8/Storage -8/Recycling -6/Factory -5/Factory -5/Waste -5/Factory -5/Upper Caves -5/Upper Caves History --------- Turn | Location | Event 18 | -11/Scrapyard | Discovered new exit (range 14) 98 | -11/Scrapyard | Entered Materials 152 | -10/Materials | Discovered new exit (range 16) 211 | -10/Materials | Discovered new exit (range 8) 301 | -10/Materials | Build established: Mutant 598 | -10/Materials | Discovered new exit (range 8) 661 | -10/Materials | Discovered new exit (range 5) 788 | -10/Materials | Build established: Scavenger-Mutant 854 | -10/Materials | Entered Subcaves 1098 | -10/Subcaves | Learned location of Zion (-6) 1172 | -10/Subcaves | Shifting Twisted Machinery released Barrage Gun 1190 | -10/Subcaves | Shifting Twisted Machinery released Mak. Thermal Plating 1310 | -10/Subcaves | Core integrity fell below 50% 1610 | -10/Subcaves | Build established: Mutant 1689 | -10/Subcaves | Discovered new exit (range 12) 1705 | -10/Subcaves | Visited Clippyterm 1708 | -10/Subcaves | Learned location of Deep Caves (-6) 1717 | -10/Subcaves | Entered Materials 1717 | -8/Materials | Evolved 4 slots: Propulsion x1, Utility x2, Weapon x1 2429 | -8/Materials | Discovered new exit (range 10) 2700 | -8/Materials | Identified exit to Storage 2748 | -8/Materials | Garrison activated, responded to threat 2859 | -8/Materials | Build established: Scavenger-Tank 2917 | -8/Materials | First assault squad dispatched 3023 | -8/Materials | Discovered new exit (range 16) 3042 | -8/Materials | Core integrity fell below 50% 3058 | -8/Materials | Lost 5 parts (1p1n1u2w) 3070 | -8/Materials | Entered Storage 3686 | -8/Storage | Core integrity fell below 20% 3699 | -8/Storage | Assisted by bots powering up and referring to "LRC-V3" 3717 | -8/Storage | Lost 13 parts (2p4n4u3w) 3729 | -8/Storage | Garrison activated, responded to threat 3771 | -8/Storage | Lost 4 allies 3925 | -8/Storage | Used back door to open Recycling access 3925 | -8/Storage | Discovered new exit (range 5) 3981 | -8/Storage | Build established: Scavenger-Mutant 4014 | -8/Storage | Identified exit to Recycling 4015 | -8/Storage | Entered Recycling 4015 | -8/Recycling | Accompanied by 3 allies 4420 | -8/Recycling | Discovered new exit (range 9) 4461 | -8/Recycling | Build established: Scavenger-Tank 4949 | -8/Recycling | Entered Scraplab 4953 | -8/Recycling | Found Prototype Device 4953 | -8/Recycling | Identified Scrap Engine 5264 | -8/Recycling | Entered Factory 5264 | -6/Factory | Accompanied by 1 ally 5264 | -6/Factory | Evolved 4 slots: Propulsion x1, Utility x3 5276 | -6/Factory | Discovered new exit (range 16) 5365 | -6/Factory | Identified exit to Factory 5530 | -6/Factory | Garrison activated, responded to threat 5633 | -6/Factory | Build established: Scavenger-Skirmisher 5661 | -6/Factory | Lost 3 parts (1n2u) 5939 | -6/Factory | Entered another Factory area 5939 | -5/Factory | Evolved 2 slots: Propulsion x1, Utility x1 6087 | -5/Factory | Build established: Mutant 6388 | -5/Factory | Sucked down chute 6388 | -5/Factory | Entered Waste 6430 | -5/Waste | Spotted C-40 Crusher 6489 | -5/Waste | Spotted C-40 Crusher 6498 | -5/Waste | Spotted C-40 Crusher 6515 | -5/Waste | Crushed by Compactor (0 parts destroyed, 1 dropped) 6520 | -5/Waste | Crushed by Compactor (0 parts destroyed, 2 dropped) 6525 | -5/Waste | Crushed by Compactor (0 parts destroyed, 1 dropped) 6541 | -5/Waste | Spotted C-40 Crusher 6543 | -5/Waste | Spotted C-40 Crusher 6548 | -5/Waste | Spotted C-40 Crusher 6616 | -5/Waste | Discovered new exit (range 16) 6641 | -5/Waste | Crushed by Compactor (0 parts destroyed, 1 dropped) 6641 | -5/Waste | Entered Factory 7014 | -5/Factory | Discovered new exit (range 16) 7028 | -5/Factory | Identified exit to Upper Caves 7069 | -5/Factory | Entered Upper Caves 7194 | -5/Upper Caves | Ambushed by research squad 7211 | -5/Upper Caves | System corruption reached 10% 7213 | -5/Upper Caves | Core integrity fell below 50% 7234 | -5/Upper Caves | Learned location of 1 exit from Factory 7271 | -5/Upper Caves | Spotted B-75 Beast 7289 | -5/Upper Caves | Core integrity fell below 20% 7321 | -5/Upper Caves | Encountered a Warlord checkpoint 7343 | -5/Upper Caves | Lost 11 parts (5n5u1w) 7354 | -5/Upper Caves | Discovered new exit (range 8) 7356 | -5/Upper Caves | Entered another Upper Caves area 7365 | -5/Upper Caves | Attracted the attention of an 0b10 checkpoint 7375 | -5/Upper Caves | Destroyed by Y-64 Sentinel with KE Penetrator Last Messages --------------- 07312_ Arm. Scrap Engine destroyed. 07312_ Scrap Engine core remains intact and functional. 07321_ KZ-EDZ(M): "This area isn't safe." 07325_ System corrupted: Component data lost. 07327_ S-27 Virus destroyed. 07327_ Chain reaction triggered in Lgt. Nuclear Core. 07327_ S-27 Virus destroyed. 07329_ KZ-EDZ(M) destroyed. 07339_ Acquired derelict log, extracted data. Data stored: Warlord entrances (x1). 07349_ Imp. Signal Interpreter destroyed. 07354_ EXIT=FOUND LOCATION=UNKNOWN GOAL=ESCAPE 07365_ Y-64 Sentinel: "INTERCEPTING UNREGISTERED DERELICT." 07374_ Acquired derelict log, extracted data. Data stored: Armory entrances (x1). 07375_ Penetrated by Slug. Map ----- +----------------------------------------------------+ | ?????????????????????????????????????????????????? | | ?????????????????????????????????????????????????? | | ?????????????????????????????????????????????????? | | ?????????????????????????????????????????????????? | | ?????????????????????????????????????????????????? | | ?????????????????????????????????????????????????? | | ?????????????????????????????????????????????????? | | ?????????????????????????????????????????????????? | | ?????????????????????????? ?????????????????????? | | ????????????????????????? ?????????????????????? | | ?????????????????????????# $?????????????????????? | | ?????????????????????????# #????????????????????? | | ?????????????????????????# #????????????????????? | | ?????????????????????????# #????????????????????? | | ?????????????????????????# #????????????????????? | | ?????????????????????????# ##???????????????????? | | ????????????????????????## #???????????????????? | | ????????????????????????# ##??????????????????? | | ????????????????????????# #??????????????????? | | ????????????????????????# ###????????????????? | | ???????????????????????## ##???????????????? | | ???????????????????##### ##??????????????? | | ??????????????????## ##?????????????? | | ?????????????????## ##????????????? | | ????????????????## #### #????????????? | | ????????????????# @ Y# #????????????? | | ????????????????# # ???????????? | | ?????????? ### #? ?????????? | | ??????????? ????## #? ####????????? | | ??????????? ###???????### #??##???????????? | | ?????????????????????????# #???????????????? | | ?????????????????????????# #???????????????? | | ?????????????????????????#########???????????????? | | ?????????????????????????????????????????????????? | | ?????????????????????????????????????????????????? | | ?????????????????????????????????????????????????? | | ?????????????????????????????????????????????????? | | ?????????????????????????????????????????????????? | | ?????????????????????????????????????????????????? | | ?????????????????????????????????????????????????? | | ?????????????????????????????????????????????????? | | ?????????????????????????????????????????????????? | | ?????????????????????????????????????????????????? | | ?????????????????????????????????????????????????? | | ?????????????????????????????????????????????????? | | ?????????????????????????????????????????????????? | | ?????????????????????????????????????????????????? | | | | | | | +----------------------------------------------------+ Best States ------------- Heat Dissipation 68 Coolant Potential 50 Energy Generation 15 Energy Capacity 265 Matter Stores 300 Matter Capacity 300 Sight Range 16 Robot Scan Range 16 Terrain Scan Range 16 Terrain Scan Density 110 Armor Coverage 800 Resistance: TH 10 Core Shielding 20 Weapon Shielding 66 Evasion (%) 55 Recoil Reduction 2 Offensive Hacking 10 Defensive Hacking 12 Item Schematics ----------------- Cesium-ion Thruster | -8/Storage | Hacked Robot Schematics ------------------ None Fabricated ------------ Nothing Repaired ---------- Nothing Alien Tech Used ----------------- None Achievements -------------- None Challenges ------------ None Game ------ Seed DispersionSubdwellerStick Manual? 0 Play Time 03:05:38 Cumulative 228.5 hours Start 2025.07.27 @ 11:43:53 End 2025.07.27 @ 15:12:46 Sessions 1 Manual Loads 0 Difficulty Rogue Special Mode None Game No. 145 Rogue 145 Adventurer 0 Explorer 0 Win Type - Total 5 Types 3/0/1/1/0/0/0/0/0/0 Lore% 63 Gallery% 59 Achievement% 52 Wizard Run 0 Options --------- Layout 2 ASCII 0 Keyboard 0 Movement Mouse Keybinds 0 Fullscreen 1 Font 48/Smallcaps Map View 55x44 Zoom Use 0% Tactical HUD 1 Map Filters NONE Filters NONE Steam 1 RUN: eeac06c3-5016-45e9-bcb9-b456c84d7f94